[Event "2nd Bieszczady Chess-ch B 2022"]
[Site "Bystre"]
[Date "2022.07.18"]
[Round "1.1"]
[White "Idzior, Izabela"]
[Black "Tymrakiewicz, Marianna"]
[Result "0-1"]
[ECO "C54"]
[WhiteElo "1260"]
[BlackElo "1819"]
[Annotator "NA RC COMBH"]
[PlyCount "104"]
[EventDate "2022.07.17"]
[EventCountry "POL"]
[SourceTitle "playchess.com"]
[Source "ChessBase"]
[SourceQuality "1"]
[TimeControl "5400+30"]

1. e4 {[%emt 0:00:03]} e5 {[%emt 0:00:04]} 2. Nf3 {[%emt 0:00:05]} Nc6 {[%emt 0:00:03]} 3. Bc4 {[%emt 0:00:09]} Bc5 {[%emt 0:00:13]} 4. c3 {[%emt 0:00:31]} Nf6 {[%emt 0:00:26]} 5. d3 {[%emt 0:00:17]} h6 {[%emt 0:00:25]} 6. Be3 {[%emt 0:01:58]} Bb6 {[%emt 0:05:37]} 7. Bb3 {[%emt 0:03:57]} d6 {[%emt 0:03:12]} 8. Qe2 {[%emt 0:01:57]} O-O {[%emt 0:02:24]} 9. Nbd2 {[%emt 0:03:51]} Na5 {[%emt 0:08:36]} 10. Bc2 {[%emt 0:00:14]} Ng4 {[%emt 0:08:07]} 11. h3 {[%emt 0:02:25]} Nxe3 {[%emt 0:00:19]} 12. fxe3 {[%emt 0:00:21]} Nc6 {[%emt 0:03:14]} 13. d4 {[%emt 0:04:24]} Re8 {[%emt 0:02:26]} 14. O-O-O {[%emt 0:03:44]} a5 {[%emt 0:10:29]} 15. g4 {[%emt 0:14:46]} a4 {[%emt 0:01:38]} 16. Qg2 {[%emt 0:07:53]} g6 {[%emt 0:07:40]} 17. Nf1 {[%emt 0:13:55]} Qe7 {[%emt 0:04:23]} 18. Qe2 {[%emt 0:08:07]} Kg7 {[%emt 0:05:24]} 19. N3d2 {[%emt 0:01:11]} Bd7 {[%emt 0:00:59]} 20. Nc4 {[%emt 0:03:46]} Na5 {[%emt 0:01:19]} 21. Nxb6 {[%emt 0:02:13]} cxb6 {[%emt 0:00:07]} 22. Ng3 {[%emt 0:02:31]} Rac8 {[%emt 0:05:29]} 23. h4 {[%emt 0:04:26]} a3 {[%emt 0:05:35]} 24. Bd3 {[%emt 0:02:04]} axb2+ {[%emt 0:01:23]} 25. Kxb2 {[%emt 0:01:22]} b5 {[%emt 0:02:23]} 26. h5 {[%emt 0:03:11]} Nc4+ {[%emt 0:01:03]} 27. Bxc4 {[%emt 0:06:03]} bxc4 {[%emt 0:00:04]} 28. hxg6 {[%emt 0:02:43]} fxg6 {[%emt 0:00:24]} 29. Qh2 {[%emt 0:01:34]} Rh8 {[%emt 0:01:39]} 30. d5 {[%emt 0:02:50]} Bxg4 {[%emt 0:00:51]} 31. Rdf1 {[%emt 0:01:10]} h5 {[%emt 0:00:48]} 32. Rhg1 {[%emt 0:00:27]} Rcf8 {[%emt 0:02:51]} 33. Rxf8 {[%emt 0:01:46]} Qxf8 {[%emt 0:00:05]} 34. Rf1 {[%emt 0:00:16]} Qd8 {[%emt 0:00:13]} 35. Kc1 {[%emt 0:01:17]} Qa8 {[%emt 0:02:42]} 36. Qh4 {[%emt 0:00:28]} Qd8 {[%emt 0:00:43]} 37. Qh2 {[%emt 0:00:22]} Rf8 {[%emt 0:00:15]} 38. Rg1 {[%emt 0:00:29]} Qg5 {[%emt 0:00:41]} 39. Nf1 {[%emt 0:00:34]} Qf6 {[%emt 0:03:02]} 40. Qb2 {[%emt 0:00:31]} Qf2 {[%emt 0:01:45]} 41. Qxf2 {[%emt 0:00:30]} Rxf2 {[%emt 0:00:03]} 42. Nd2 {[%emt 0:00:11]} Be2 {[%emt 0:00:30]} 43. Kc2 {[%emt 0:00:38]} Bd3+ {[%emt 0:00:09]} 44. Kc1 {[%emt 0:00:19]} Kf6 {[%emt 0:00:26]} 45. Re1 {[%emt 0:00:59]} g5 {[%emt 0:00:17]} 46. Rh1 {[%emt 0:00:29]} h4 {[%emt 0:00:10]} 47. Kd1 {[%emt 0:00:22]} Kg6 {[%emt 0:01:41]} 48. Rh3 {[%emt 0:00:31]} Kh5 {[%emt 0:00:29]} 49. Ke1 {[%emt 0:00:35]} Re2+ {[%emt 0:00:30]} 50. Kd1 {[%emt 0:00:14]} g4 {[%emt 0:00:23]} 51. Rh1 {[%emt 0:00:16]} Rxe3 {[%emt 0:01:29]} 52. Rh2 {[%emt 0:00:38]} g3 {[%emt 0:00:12]} 0-1

[Event "2nd Bieszczady Chess-ch B 2022"]
[Site "Bystre"]
[Date "2022.07.18"]
[Round "1.2"]
[White "Warchol, Jacek"]
[Black "Kulig, Karol"]
[Result "1-0"]
[ECO "B73"]
[WhiteElo "1785"]
[BlackElo "1253"]
[Annotator "NA RC COMBH"]
[PlyCount "93"]
[EventDate "2022.07.17"]
[EventCountry "POL"]
[SourceTitle "playchess.com"]
[Source "ChessBase"]
[SourceQuality "1"]
[TimeControl "5400+30"]

1. e4 {[%emt 0:00:07]} c5 {[%emt 0:00:29]} 2. Nf3 {[%emt 0:00:22]} Nc6 {[%emt 0:00:37]} 3. d4 {[%emt 0:01:03]} cxd4 {[%emt 0:00:11]} 4. Nxd4 {[%emt 0:00:07]} g6 {[%emt 0:00:19]} 5. Nc3 {[%emt 0:01:15]} Bg7 {[%emt 0:00:16]} 6. Be3 {[%emt 0:00:11]} Nf6 {[%emt 0:01:19]} 7. Be2 {[%emt 0:00:40]} d6 {[%emt 0:01:28]} 8. O-O {[%emt 0:03:30]} O-O {[%emt 0:00:37]} 9. f4 {[%emt 0:02:16]} Nd7 {[%emt 0:12:04]} 10. Qd2 {[%emt 0:05:34]} Nxd4 {[%emt 0:10:19]} 11. Bxd4 {[%emt 0:01:29]} Bxd4+ {[%emt 0:00:58]} 12. Qxd4 {[%emt 0:00:10]} Qb6 {[%emt 0:00:52]} 13. Qxb6 {[%emt 0:00:39]} Nxb6 {[%emt 0:00:14]} 14. Rad1 {[%emt 0:02:06]} Be6 {[%emt 0:03:31]} 15. f5 {[%emt 0:02:25]} Bc4 {[%emt 0:02:12]} 16. Bxc4 {[%emt 0:15:00]} Nxc4 {[%emt 0:00:11]} 17. Nd5 {[%emt 0:00:07]} e6 {[%emt 0:20:17]} 18. Ne7+ {[%emt 0:21:44]} Kh8 {[%emt 0:00:15]} 19. Rf3 {[%emt 0:00:43]} Rfe8 {[%emt 0:05:51]} 20. f6 {[%emt 0:02:21]} Ne5 {[%emt 0:01:57]} 21. Rb3 {[%emt 0:02:41]} b6 {[%emt 0:04:23]} 22. Rxd6 {[%emt 0:02:41]} Ng4 {[%emt 0:01:03]} 23. Nc6 {[%emt 0:08:08]} Nxf6 {[%emt 0:02:51]} 24. Ne5 {[%emt 0:03:35]} Nxe4 {[%emt 0:02:23]} 25. Rd4 {[%emt 0:04:47]} Nc5 {[%emt 0:03:09]} 26. Nxf7+ {[%emt 0:01:05]} Kg7 {[%emt 0:00:44]} 27. Rf3 {[%emt 0:00:02]} Rf8 {[%emt 0:02:14]} 28. Ne5 {[%emt 0:00:24]} Rxf3 {[%emt 0:00:43]} 29. Nxf3 {[%emt 0:00:03]} Re8 {[%emt 0:01:08]} 30. Ne5 {[%emt 0:01:22]} Re7 {[%emt 0:00:55]} 31. Kf2 {[%emt 0:00:51]} Kf6 {[%emt 0:01:51]} 32. Nd3 {[%emt 0:01:16]} Nxd3+ {[%emt 0:01:14]} 33. Rxd3 {[%emt 0:00:01]} Rc7 {[%emt 0:00:55]} 34. Rd2 {[%emt 0:00:20]} h5 {[%emt 0:00:53]} 35. Ke3 {[%emt 0:00:15]} Ke5 {[%emt 0:01:32]} 36. c3 {[%emt 0:00:17]} Rc5 {[%emt 0:04:51]} 37. Rd8 {[%emt 0:00:11]} a5 {[%emt 0:01:42]} 38. Rb8 {[%emt 0:03:52]} b5 {[%emt 0:01:40]} 39. Rg8 {[%emt 0:01:22]} Kf5 {[%emt 0:01:25]} 40. Ra8 {[%emt 0:00:11]} a4 {[%emt 0:00:55]} 41. a3 {[%emt 0:03:27]} Re5+ {[%emt 0:02:11]} 42. Kd2 {[%emt 0:00:46]} Ke4 {[%emt 0:01:23]} 43. c4 {[%emt 0:00:52]} Kd4 {[%emt 0:01:14]} 44. cxb5 {[%emt 0:00:22]} Rxb5 {[%emt 0:00:34]} 45. Rxa4+ {[%emt 0:00:09]} Kd5 {[%emt 0:00:18]} 46. Rb4 {[%emt 0:01:16]} Rc5 {[%emt 0:00:48]} 47. a4 1-0

[Event "2nd Bieszczady Chess-ch B 2022"]
[Site "Bystre"]
[Date "2022.07.18"]
[Round "1.3"]
[White "Baranowski, Jan"]
[Black "Sola, Wojciech"]
[Result "1-0"]
[ECO "B27"]
[WhiteElo "1249"]
[BlackElo "1780"]
[Annotator "NA RC COMBH"]
[PlyCount "92"]
[EventDate "2022.07.17"]
[EventCountry "POL"]
[SourceTitle "playchess.com"]
[Source "ChessBase"]
[SourceQuality "1"]
[TimeControl "5400+30"]

1. e4 {[%emt 0:00:02]} c5 {[%emt 0:00:16]} 2. Nf3 {[%emt 0:00:22]} g6 {[%emt 0:00:31]} 3. d4 {[%emt 0:00:34]} cxd4 {[%emt 0:00:08]} 4. Nxd4 {[%emt 0:00:29]} Bg7 {[%emt 0:00:25]} 5. Nc3 {[%emt 0:01:22]} Nc6 {[%emt 0:00:18]} 6. Be3 {[%emt 0:00:31]} Nf6 {[%emt 0:00:35]} 7. Qd2 {[%emt 0:01:22]} Ng4 {[%emt 0:02:23]} 8. O-O-O {[%emt 0:02:26]} Nxe3 {[%emt 0:00:25]} 9. fxe3 {[%emt 0:07:42]} O-O {[%emt 0:00:20]} 10. g4 {[%emt 0:04:47]} d6 {[%emt 0:02:04]} 11. Be2 {[%emt 0:02:32]} Ne5 {[%emt 0:00:30]} 12. Rdg1 {[%emt 0:05:01]} a6 {[%emt 0:01:34]} 13. h4 {[%emt 0:02:02]} b5 {[%emt 0:00:24]} 14. h5 {[%emt 0:01:51]} g5 {[%emt 0:10:06]} 15. Nf5 {[%emt 0:05:08]} h6 {[%emt 0:00:27]} 16. Nd5 {[%emt 0:08:36]} Bxf5 {[%emt 0:07:09]} 17. exf5 {[%emt 0:03:07]} e6 {[%emt 0:00:35]} 18. f6 {[%emt 0:10:33]} Bxf6 {[%emt 0:07:10]} 19. Nxf6+ {[%emt 0:00:28]} Qxf6 {[%emt 0:00:08]} 20. Qxd6 {[%emt 0:02:38]} Rfd8 {[%emt 0:02:39]} 21. Qb4 {[%emt 0:02:15]} Qf2 {[%emt 0:05:15]} 22. Qe4 {[%emt 0:04:24]} Qxe2 {[%emt 0:02:43]} 23. Qxe5 {[%emt 0:00:40]} Rac8 {[%emt 0:06:01]} 24. Kb1 {[%emt 0:06:22]} Qxc2+ {[%emt 0:09:01]} 25. Ka1 {[%emt 0:00:16]} Rd2 {[%emt 0:02:20]} 26. Qf6 {[%emt 0:04:55]} Rh2 {[%emt 0:01:41]} 27. Rf1 {[%emt 0:03:23]} Rc7 {[%emt 0:04:45]} 28. a3 {[%emt 0:01:29]} Rxh1 {[%emt 0:07:59]} 29. Rxh1 {[%emt 0:00:41]} Qd2 {[%emt 0:01:05]} 30. Qxh6 {[%emt 0:01:54]} Rc1+ {[%emt 0:00:14]} 31. Rxc1 {[%emt 0:00:15]} Qxc1+ {[%emt 0:00:07]} 32. Ka2 {[%emt 0:00:02]} Qc4+ {[%emt 0:03:19]} 33. Ka1 {[%emt 0:02:15]} Qxg4 {[%emt 0:00:19]} 34. e4 {[%emt 0:00:46]} Qf4 {[%emt 0:01:49]} 35. Ka2 {[%emt 0:02:14]} a5 {[%emt 0:02:32]} 36. Ka1 {[%emt 0:00:45]} Qe5 {[%emt 0:00:57]} 37. Ka2 {[%emt 0:01:20]} Qg7 {[%emt 0:00:14]} 38. Qxg7+ {[%emt 0:02:34]} Kxg7 {[%emt 0:00:10]} 39. a4 {[%emt 0:00:07]} bxa4 {[%emt 0:00:43]} 40. Ka3 {[%emt 0:00:08]} g4 {[%emt 0:00:09]} 41. Kxa4 {[%emt 0:00:03]} g3 {[%emt 0:00:09]} 42. Kxa5 {[%emt 0:00:07]} g2 {[%emt 0:00:08]} 43. b4 {[%emt 0:00:08]} g1=Q {[%emt 0:00:16]} 44. b5 {[%emt 0:00:02]} Qe1+ {[%emt 0:00:29]} 45. Ka6 {[%emt 0:00:10]} Qxe4 {[%emt 0:00:18]} 46. Ka7 {[%emt 0:00:20]} f5 {[%emt 0:00:16]} 1-0

[Event "2nd Bieszczady Chess-ch B 2022"]
[Site "Bystre"]
[Date "2022.07.18"]
[Round "1.4"]
[White "Biesiadecki, Adam"]
[Black "Gavker, Markiyan"]
[Result "1-0"]
[ECO "B20"]
[WhiteElo "1776"]
[BlackElo "1249"]
[Annotator "NA RC COMBH"]
[PlyCount "133"]
[EventDate "2022.07.17"]
[EventCountry "POL"]
[SourceTitle "playchess.com"]
[Source "ChessBase"]
[SourceQuality "1"]
[TimeControl "5400+30"]

1. e4 {[%emt 0:00:02]} c5 {[%emt 0:00:08]} 2. b4 {[%emt 0:00:06]} d6 {[%emt 0:00:05]} 3. bxc5 {[%emt 0:01:07]} dxc5 {[%emt 0:00:05]} 4. Nc3 {[%emt 0:00:34]} Nc6 {[%emt 0:00:12]} 5. Nf3 {[%emt 0:03:20]} Nf6 {[%emt 0:00:28]} 6. Rb1 {[%emt 0:00:35]} e6 {[%emt 0:00:30]} 7. Bc4 {[%emt 0:02:29]} Be7 {[%emt 0:00:22]} 8. O-O {[%emt 0:00:17]} O-O {[%emt 0:00:07]} 9. Re1 {[%emt 0:01:45]} a6 {[%emt 0:00:18]} 10. a4 {[%emt 0:01:18]} Qc7 {[%emt 0:04:26]} 11. d3 {[%emt 0:02:16]} Rd8 {[%emt 0:00:50]} 12. Ne2 {[%emt 0:07:46]} h6 {[%emt 0:01:46]} 13. Ng3 {[%emt 0:02:03]} e5 {[%emt 0:00:59]} 14. c3 {[%emt 0:02:06]} Rb8 {[%emt 0:06:51]} 15. Qc2 {[%emt 0:08:52]} Na7 {[%emt 0:03:21]} 16. Nf5 {[%emt 0:05:02]} Bxf5 {[%emt 0:00:37]} 17. exf5 {[%emt 0:00:42]} Bd6 {[%emt 0:00:18]} 18. Nd2 {[%emt 0:09:13]} b5 {[%emt 0:01:44]} 19. axb5 {[%emt 0:01:20]} axb5 {[%emt 0:00:03]} 20. Ba2 {[%emt 0:00:15]} b4 {[%emt 0:00:24]} 21. Ne4 {[%emt 0:02:40]} Nxe4 {[%emt 0:01:00]} 22. dxe4 {[%emt 0:01:36]} bxc3 {[%emt 0:02:10]} 23. Rxb8 {[%emt 0:01:34]} Rxb8 {[%emt 0:00:10]} 24. Qxc3 {[%emt 0:00:13]} Nb5 {[%emt 0:00:10]} 25. Qg3 {[%emt 0:00:19]} Kh7 {[%emt 0:00:27]} 26. f6 {[%emt 0:00:20]} Bf8 {[%emt 0:02:16]} 27. fxg7 {[%emt 0:02:46]} Bxg7 {[%emt 0:00:13]} 28. f4 {[%emt 0:02:13]} Nd4 {[%emt 0:05:39]} 29. f5 {[%emt 0:03:25]} Qa7 {[%emt 0:01:30]} 30. Bc4 {[%emt 0:11:02]} Rb4 {[%emt 0:01:20]} 31. f6 {[%emt 0:01:11]} Bxf6 {[%emt 0:00:47]} 32. Qd3 {[%emt 0:07:13]} Rb8 {[%emt 0:11:25]} 33. Rf1 {[%emt 0:00:47]} Bg7 {[%emt 0:01:17]} 34. Rxf7 {[%emt 0:02:02]} Qb6 {[%emt 0:03:18]} 35. Qg3 {[%emt 0:09:46]} Qg6 {[%emt 0:01:26]} 36. Qxg6+ {[%emt 0:00:54]} Kxg6 {[%emt 0:00:07]} 37. Rf1 {[%emt 0:02:34]} Rb4 {[%emt 0:00:39]} 38. Bf7+ {[%emt 0:00:08]} Kh7 {[%emt 0:00:07]} 39. Ba3 {[%emt 0:00:24]} Rb5 {[%emt 0:01:35]} 40. Kf2 {[%emt 0:01:11]} Rb6 {[%emt 0:03:34]} 41. Kg3 {[%emt 0:02:18]} Ne2+ {[%emt 0:01:54]} 42. Kg4 {[%emt 0:01:25]} Nf4 {[%emt 0:01:39]} 43. g3 {[%emt 0:00:50]} Rf6 {[%emt 0:02:04]} 44. Bc4 {[%emt 0:01:03]} h5+ {[%emt 0:01:27]} 45. Kh4 {[%emt 0:00:44]} Ra6 {[%emt 0:01:55]} 46. gxf4 {[%emt 0:02:29]} Rxa3 {[%emt 0:00:16]} 47. fxe5 {[%emt 0:01:08]} Bxe5 {[%emt 0:00:28]} 48. Kg5 {[%emt 0:00:28]} Ra7 {[%emt 0:01:16]} 49. h4 {[%emt 0:00:31]} Kg7 {[%emt 0:02:17]} 50. Kxh5 {[%emt 0:00:11]} Bf6 {[%emt 0:01:01]} 51. Kg4 {[%emt 0:00:11]} Re7 {[%emt 0:00:14]} 52. Bd5 {[%emt 0:00:11]} Re5 {[%emt 0:00:37]} 53. Rc1 {[%emt 0:00:01]} Be7 {[%emt 0:00:33]} 54. Rf1 {[%emt 0:00:02]} Bf6 {[%emt 0:00:09]} 55. Rb1 {[%emt 0:00:02]} Be7 {[%emt 0:01:50]} 56. Rb7 {[%emt 0:00:25]} Kf6 {[%emt 0:01:00]} 57. Ra7 {[%emt 0:00:18]} Bd6 {[%emt 0:03:02]} 58. Rd7 {[%emt 0:01:58]} Be7 {[%emt 0:01:08]} 59. Rc7 {[%emt 0:00:01]} Kg6 {[%emt 0:02:29]} 60. Rc6+ {[%emt 0:01:54]} Kg7 {[%emt 0:00:49]} 61. Rc8 {[%emt 0:00:08]} Bf8 {[%emt 0:02:10]} 62. Rc7+ {[%emt 0:00:26]} Be7 {[%emt 0:00:10]} 63. Kf4 {[%emt 0:00:44]} Rxd5 {[%emt 0:06:18]} 64. exd5 {[%emt 0:00:26]} Kf6 {[%emt 0:00:08]} 65. Rc6+ {[%emt 0:00:07]} Kf7 {[%emt 0:00:24]} 66. h5 {[%emt 0:00:04]} Ke8 {[%emt 0:00:40]} 67. h6 1-0

[Event "2nd Bieszczady Chess-ch B 2022"]
[Site "Bystre"]
[Date "2022.07.18"]
[Round "1.5"]
[White "Sypek, Mateusz"]
[Black "Sypek, Szymon"]
[Result "0-1"]
[ECO "B54"]
[WhiteElo "1234"]
[BlackElo "1726"]
[Annotator "NA RC COMBH"]
[PlyCount "70"]
[EventDate "2022.07.17"]
[EventCountry "POL"]
[SourceTitle "playchess.com"]
[Source "ChessBase"]
[SourceQuality "1"]
[TimeControl "5400+30"]

1. e4 {[%emt 0:00:11]} c5 {[%emt 0:00:17]} 2. Nf3 {[%emt 0:00:11]} d6 {[%emt 0:00:18]} 3. d4 {[%emt 0:00:33]} cxd4 {[%emt 0:00:07]} 4. Nxd4 {[%emt 0:00:11]} Nf6 {[%emt 0:00:05]} 5. Bd3 {[%emt 0:01:55]} g6 {[%emt 0:00:40]} 6. c4 {[%emt 0:01:25]} Bg7 {[%emt 0:00:23]} 7. Bc2 {[%emt 0:01:42]} O-O {[%emt 0:00:39]} 8. O-O {[%emt 0:00:36]} Nc6 {[%emt 0:01:35]} 9. Nf3 {[%emt 0:05:26]} Nb4 {[%emt 0:06:31]} 10. Be3 {[%emt 0:04:45]} Bg4 {[%emt 0:12:09]} 11. Nbd2 {[%emt 0:03:12]} Qc7 {[%emt 0:03:08]} 12. a3 {[%emt 0:03:45]} Nxc2 {[%emt 0:03:13]} 13. Qxc2 {[%emt 0:02:12]} Rac8 {[%emt 0:09:44]} 14. Rac1 {[%emt 0:02:29]} d5 {[%emt 0:02:13]} 15. c5 {[%emt 0:07:19]} dxe4 {[%emt 0:01:13]} 16. Nd4 {[%emt 0:03:57]} Bf5 {[%emt 0:02:37]} 17. h3 {[%emt 0:07:48]} Rfd8 {[%emt 0:04:34]} 18. Nb5 {[%emt 0:05:05]} Qd7 {[%emt 0:04:45]} 19. Nd4 {[%emt 0:11:07]} Bxh3 {[%emt 0:01:07]} 20. Rfd1 {[%emt 0:01:29]} Qg4 {[%emt 0:01:59]} 21. Kf1 {[%emt 0:07:21]} Qxg2+ {[%emt 0:01:22]} 22. Ke1 {[%emt 0:00:46]} Ng4 {[%emt 0:03:48]} 23. Qxe4 {[%emt 0:03:14]} Nxe3 {[%emt 0:01:17]} 24. fxe3 {[%emt 0:00:53]} Qg3+ {[%emt 0:01:48]} 25. Ke2 {[%emt 0:00:15]} Bxd4 {[%emt 0:02:19]} 26. exd4 {[%emt 0:00:29]} Bg4+ {[%emt 0:01:29]} 27. Nf3 {[%emt 0:01:38]} Bxf3+ {[%emt 0:00:07]} 28. Qxf3 {[%emt 0:00:06]} Qxf3+ {[%emt 0:00:04]} 29. Kxf3 {[%emt 0:00:05]} Rd5 {[%emt 0:00:06]} 30. b4 {[%emt 0:00:41]} Rcd8 {[%emt 0:01:01]} 31. Ke3 {[%emt 0:05:04]} e5 {[%emt 0:00:47]} 32. b5 {[%emt 0:02:49]} exd4+ {[%emt 0:00:42]} 33. Kd3 {[%emt 0:00:41]} Rc8 {[%emt 0:00:26]} 34. c6 {[%emt 0:00:43]} bxc6 {[%emt 0:00:05]} 35. bxc6 {[%emt 0:00:33]} Rd6 {[%emt 0:00:06]} 0-1

[Event "2nd Bieszczady Chess-ch B 2022"]
[Site "Bystre"]
[Date "2022.07.18"]
[Round "1.6"]
[White "Kulig, Pawel"]
[Black "Kryston, Aleksander"]
[Result "1-0"]
[ECO "E76"]
[WhiteElo "1720"]
[BlackElo "1216"]
[Annotator "NA COMBH"]
[PlyCount "71"]
[EventDate "2022.07.17"]
[EventCountry "POL"]
[SourceTitle "playchess.com"]
[Source "ChessBase"]
[SourceQuality "1"]
[TimeControl "5400+30"]

1. d4 {[%emt 0:00:02]} g6 {[%emt 0:00:04]} 2. c4 {[%emt 0:00:35]} Bg7 {[%emt 0:00:07]} 3. e4 {[%emt 0:00:21]} d6 {[%emt 0:00:06]} 4. Nc3 {[%emt 0:00:04]} Nf6 {[%emt 0:00:07]} 5. f4 {[%emt 0:00:28]} O-O {[%emt 0:00:55]} 6. Nf3 {[%emt 0:00:04]} Bg4 {[%emt 0:00:05]} 7. Bd3 {[%emt 0:00:26]} Nc6 {[%emt 0:01:27]} 8. Be3 {[%emt 0:00:47]} e5 {[%emt 0:03:54]} 9. fxe5 {[%emt 0:00:36]} dxe5 {[%emt 0:00:22]} 10. d5 {[%emt 0:00:28]} Ne7 {[%emt 0:06:06]} 11. O-O {[%emt 0:01:17]} c6 {[%emt 0:01:51]} 12. h3 {[%emt 0:00:52]} Bxf3 {[%emt 0:00:16]} 13. Qxf3 {[%emt 0:00:22]} b6 {[%emt 0:07:26]} 14. Bc2 {[%emt 0:05:18]} c5 {[%emt 0:01:24]} 15. a3 {[%emt 0:01:10]} Nd7 {[%emt 0:02:48]} 16. Bg5 {[%emt 0:01:43]} f6 {[%emt 0:00:35]} 17. Bh4 {[%emt 0:00:27]} Nc8 {[%emt 0:00:43]} 18. d6 {[%emt 0:09:06]} Nb8 {[%emt 0:14:47]} 19. Nb5 {[%emt 0:00:53]} Na6 {[%emt 0:02:31]} 20. Qd3 {[%emt 0:02:31]} Rf7 {[%emt 0:03:08]} 21. Rad1 {[%emt 0:01:10]} g5 {[%emt 0:04:13]} 22. Bxg5 {[%emt 0:00:59]} Rb8 {[%emt 0:02:16]} 23. Bh4 {[%emt 0:03:11]} Rd7 {[%emt 0:01:06]} 24. Qd5+ {[%emt 0:01:02]} Kh8 {[%emt 0:00:24]} 25. Qe6 {[%emt 0:00:18]} Rbb7 {[%emt 0:04:53]} 26. Bxf6 {[%emt 0:00:44]} Bxf6 {[%emt 0:00:36]} 27. Rxf6 {[%emt 0:00:07]} Kg7 {[%emt 0:07:55]} 28. Rf5 {[%emt 0:00:58]} Rf7 {[%emt 0:01:50]} 29. Qxe5+ {[%emt 0:00:18]} Kg8 {[%emt 0:00:34]} 30. Rdf1 {[%emt 0:01:28]} Nb8 {[%emt 0:02:15]} 31. Rxf7 {[%emt 0:02:32]} Rxf7 {[%emt 0:00:03]} 32. Rxf7 {[%emt 0:00:07]} Kxf7 {[%emt 0:00:28]} 33. Qf5+ {[%emt 0:00:08]} Qf6 {[%emt 0:00:58]} 34. Qxc8 {[%emt 0:02:16]} Qxb2 {[%emt 0:00:41]} 35. Qf5+ {[%emt 0:00:25]} Kg8 {[%emt 0:00:13]} 36. e5 {[%emt 0:00:05]} 1-0

[Event "2nd Bieszczady Chess-ch B 2022"]
[Site "Bystre"]
[Date "2022.07.18"]
[Round "1.7"]
[White "Stachowicz, Hubert"]
[Black "Tokarz, Izabela"]
[Result "0-1"]
[ECO "E91"]
[WhiteElo "1213"]
[BlackElo "1694"]
[Annotator "NA COMBH"]
[PlyCount "94"]
[EventDate "2022.07.17"]
[EventCountry "POL"]
[SourceTitle "playchess.com"]
[Source "ChessBase"]
[SourceQuality "1"]
[TimeControl "5400+30"]

1. d4 {[%emt 0:00:03]} Nf6 {[%emt 0:01:03]} 2. c4 {[%emt 0:00:09]} g6 {[%emt 0:00:05]} 3. Nc3 {[%emt 0:00:07]} Bg7 {[%emt 0:00:03]} 4. Nf3 {[%emt 0:00:11]} O-O {[%emt 0:00:04]} 5. e4 {[%emt 0:00:19]} d6 {[%emt 0:00:03]} 6. Be2 {[%emt 0:00:25]} Nc6 {[%emt 0:00:05]} 7. h3 {[%emt 0:00:52]} e5 {[%emt 0:00:12]} 8. d5 {[%emt 0:00:07]} Ne7 {[%emt 0:00:05]} 9. Be3 {[%emt 0:00:27]} b6 {[%emt 0:00:08]} 10. O-O {[%emt 0:00:50]} a5 {[%emt 0:01:14]} 11. a3 {[%emt 0:00:44]} Ne8 {[%emt 0:00:28]} 12. Nd2 {[%emt 0:00:22]} f5 {[%emt 0:00:55]} 13. f3 {[%emt 0:00:46]} Nf6 {[%emt 0:00:18]} 14. Qc2 {[%emt 0:00:56]} Nh5 {[%emt 0:02:00]} 15. b4 {[%emt 0:00:30]} Ng3 {[%emt 0:00:35]} 16. Rfb1 {[%emt 0:00:25]} Kh8 {[%emt 0:02:17]} 17. c5 {[%emt 0:02:00]} bxc5 {[%emt 0:00:43]} 18. bxc5 {[%emt 0:00:06]} Ng8 {[%emt 0:00:06]} 19. cxd6 {[%emt 0:01:15]} cxd6 {[%emt 0:02:14]} 20. Bb5 {[%emt 0:01:10]} Bh6 {[%emt 0:04:44]} 21. Bf2 {[%emt 0:01:48]} Qg5 {[%emt 0:00:51]} 22. Bc6 {[%emt 0:04:20]} Qxd2 {[%emt 0:02:45]} 23. Qxd2 {[%emt 0:00:14]} Bxd2 {[%emt 0:00:01]} 24. Bxg3 {[%emt 0:00:17]} Bxc3 {[%emt 0:00:22]} 25. Bxa8 {[%emt 0:00:08]} Bxa1 {[%emt 0:00:04]} 26. Rxa1 {[%emt 0:00:12]} fxe4 {[%emt 0:00:02]} 27. fxe4 {[%emt 0:01:03]} Bxh3 {[%emt 0:00:04]} 28. gxh3 {[%emt 0:00:37]} Rxa8 {[%emt 0:00:01]} 29. Bh4 {[%emt 0:00:31]} h6 {[%emt 0:00:19]} 30. Rf1 {[%emt 0:03:35]} Kg7 {[%emt 0:00:16]} 31. Rc1 {[%emt 0:02:01]} g5 {[%emt 0:00:29]} 32. Rc7+ {[%emt 0:00:09]} Kg6 {[%emt 0:00:13]} 33. Bf2 {[%emt 0:01:50]} Nf6 {[%emt 0:00:06]} 34. Rc6 {[%emt 0:01:18]} Nxe4 {[%emt 0:00:06]} 35. Bb6 {[%emt 0:00:27]} a4 {[%emt 0:03:32]} 36. Kg2 {[%emt 0:03:25]} Rf8 {[%emt 0:00:30]} 37. Rc4 {[%emt 0:01:23]} Nf6 {[%emt 0:00:16]} 38. Rc6 {[%emt 0:01:14]} Nxd5 {[%emt 0:00:23]} 39. Rxd6+ {[%emt 0:00:10]} Nf6 {[%emt 0:00:02]} 40. Bc7 {[%emt 0:18:46]} Kf5 {[%emt 0:00:27]} 41. Ra6 {[%emt 0:00:05]} Rc8 {[%emt 0:00:22]} 42. Ba5 {[%emt 0:00:18]} Rc2+ {[%emt 0:00:11]} 43. Kg3 {[%emt 0:02:02]} h5 {[%emt 0:00:12]} 44. Bd8 {[%emt 0:01:33]} h4+ {[%emt 0:00:29]} 45. Kf3 {[%emt 0:00:26]} Nd5 {[%emt 0:00:12]} 46. Rxa4 {[%emt 0:00:27]} e4+ {[%emt 0:00:05]} 47. Rxe4 {[%emt 0:00:09]} Rc3+ {[%emt 0:00:01]} 0-1

[Event "2nd Bieszczady Chess-ch B 2022"]
[Site "Bystre"]
[Date "2022.07.18"]
[Round "1.8"]
[White "Kusiak, Mateusz"]
[Black "Chrulski, Mateusz"]
[Result "1-0"]
[ECO "B18"]
[WhiteElo "1693"]
[BlackElo "1197"]
[Annotator "NA COMBH"]
[PlyCount "73"]
[EventDate "2022.07.17"]
[EventCountry "POL"]
[SourceTitle "playchess.com"]
[Source "ChessBase"]
[SourceQuality "1"]
[TimeControl "5400+30"]

1. e4 {[%emt 0:00:14]} c6 {[%emt 0:00:38]} 2. d4 {[%emt 0:00:06]} d5 {[%emt 0:00:11]} 3. Nd2 {[%emt 0:00:18]} dxe4 {[%emt 0:00:21]} 4. Nxe4 {[%emt 0:00:07]} Bf5 {[%emt 0:00:35]} 5. Qf3 {[%emt 0:00:23]} Bxe4 {[%emt 0:00:16]} 6. Qxe4 {[%emt 0:00:05]} Nf6 {[%emt 0:00:38]} 7. Qd3 {[%emt 0:00:19]} e6 {[%emt 0:00:34]} 8. Nf3 {[%emt 0:00:10]} Qc7 {[%emt 0:01:05]} 9. g3 {[%emt 0:00:42]} Nbd7 {[%emt 0:02:19]} 10. Bg2 {[%emt 0:02:09]} O-O-O {[%emt 0:03:06]} 11. O-O {[%emt 0:03:20]} c5 {[%emt 0:02:22]} 12. c3 {[%emt 0:14:14]} cxd4 {[%emt 0:05:05]} 13. Nxd4 {[%emt 0:01:21]} Bc5 {[%emt 0:00:55]} 14. Nb5 {[%emt 0:02:07]} Qb6 {[%emt 0:00:36]} 15. b4 {[%emt 0:00:10]} a6 {[%emt 0:01:44]} 16. Na3 {[%emt 0:01:17]} Be7 {[%emt 0:03:14]} 17. Nc4 {[%emt 0:01:32]} Qc7 {[%emt 0:00:35]} 18. Na5 {[%emt 0:00:57]} Ne5 {[%emt 0:01:48]} 19. Qe2 {[%emt 0:00:42]} Nd5 {[%emt 0:03:49]} 20. Bf4 {[%emt 0:10:48]} Bd6 {[%emt 0:08:50]} 21. c4 {[%emt 0:00:37]} Nxf4 {[%emt 0:00:35]} 22. gxf4 {[%emt 0:00:40]} Nc6 {[%emt 0:00:44]} 23. Nxc6 {[%emt 0:00:23]} bxc6 {[%emt 0:00:05]} 24. c5 {[%emt 0:00:07]} Bxf4 {[%emt 0:00:29]} 25. Qxa6+ {[%emt 0:00:05]} Kd7 {[%emt 0:00:49]} 26. h3 {[%emt 0:01:46]} Rb8 {[%emt 0:01:25]} 27. Rad1+ {[%emt 0:01:24]} Ke7 {[%emt 0:00:10]} 28. Bxc6 {[%emt 0:00:18]} Rhd8 {[%emt 0:01:19]} 29. Rxd8 {[%emt 0:02:41]} Qxd8 {[%emt 0:00:23]} 30. a3 {[%emt 0:24:30]} Kf8 {[%emt 0:02:07]} 31. Qe2 {[%emt 0:01:51]} Qf6 {[%emt 0:01:09]} 32. Rd1 {[%emt 0:01:33]} Qc3 {[%emt 0:01:34]} 33. Qd3 {[%emt 0:01:31]} Qb2 {[%emt 0:00:33]} 34. Qxh7 {[%emt 0:01:56]} Qxa3 {[%emt 0:00:18]} 35. Rd7 {[%emt 0:00:10]} Qa1+ {[%emt 0:01:47]} 36. Kg2 {[%emt 0:00:06]} g5 {[%emt 0:00:13]} 37. Rxf7# {[%emt 0:00:38]} 1-0